[Event "FRA-ch Teams Top 16-A 2022"]
[Site "Chartres"]
[Date "2022.06.11"]
[Round "3.1"]
[White "Lagarde, Maxime"]
[Black "Abasov, Nijat"]
[Result "1/2-1/2"]
[ECO "C09"]
[WhiteElo "2628"]
[BlackElo "2635"]
[Annotator "TA"]
[PlyCount "165"]
[EventDate "2022.06.09"]
[EventType "team-tourn"]
[EventCountry "FRA"]
[SourceTitle "playchess.com"]
[Source "ChessBase"]
[SourceQuality "1"]
[TimeControl "40/5400+30:1800+30"]

{[%evp 19,165,36,46,18,25,12,22,13,14,12,22,12,39,37,30,35,46,54,47,40,54,-12,-2,0,0,-14,-20,-13,0,0,0,0,0,0,0,0,22,18,28,28,34,34,55,18,35,11,18,18,18,8,8,8,39,8,8,13,18,0,20,8,60,10,33,33,45,33,55,19,63,56,52,41,41,43,89,89,1292,1292,1156,1059,1107,62,62,41,45,41,44,44,45,45,89,45,89,89,89,89,89,0,89,89,89,89,89,89,89,89,89,89,89,89,89,89,89,89,89,89,89,8,8,8,8,8,8,8,8,8,33,8,8,8,8,8,121,121,121,121,121,121,121,121,128,128,129,129,129,8,129,8]} 1. e4 {[%emt 0:00:02]} c5 {[%emt 0:00:06]} 2. Nf3 {[%emt 0:00:03]} e6 {[%emt 0:00:18]} 3. c3 {[%emt 0:00:31]} d5 {[%emt 0:01:18]} 4. exd5 {[%emt 0:00:04]} exd5 {[%emt 0:03:48]} 5. d4 {[%emt 0:00:22]} Nc6 {[%emt 0:00:07]} 6. Bb5 {[%emt 0:01:20]} Bd6 {[%emt 0:00:34]} 7. O-O {[%emt 0:00:31]} Nge7 {[%emt 0:00:10]} 8. dxc5 {[%emt 0:01:28]} Bxc5 {[%emt 0:00:09]} 9. Nbd2 {[%emt 0:01:20]} O-O {[%emt 0:00:10]} 10. Nb3 {[%emt 0:01:38]} Bd6 {[%emt 0:00:35]} 11. Nfd4 {[%emt 0:06:54] 11.h3 is the modern continuation. C09: French Tarrasch: 3...c5 4 exd5 exd5 5 Ngf3 Nc6.} a6 {[%emt 0:09:27]} 12. Bd3 {[%emt 0:02:40]} Ne5 {[%emt 0:00:36]} 13. Bc2 {[%emt 0:04:21] The position is equal.} Bg4 {[%emt 0:03:31]} 14. Qe1 {[%emt 0:00:33] [#] aiming for f4.} N7c6 $146 {[%emt 0:05:07]} ({Predecessor:} 14... Re8 15. f4 N5g6 16. Qf2 Qc7 17. h3 Bd7 18. f5 Bg3 19. Qf3 Nh4 20. Qh5 g6 21. Qg5 Nhxf5 22. Bxf5 Nxf5 23. Nxf5 {0-1 (42) Maeckelbergh,M-De Greef,H (2175) Oisterwijk 1991}) 15. f4 {[%emt 0:14:02]} Nc4 {[%emt 0:04:59]} 16. Qg3 {[%emt 0:03:36]} Bd7 {[%emt 0:01:07]} 17. Qf3 {[%emt 0:02:47]} Qc7 {[%emt 0:22:51]} 18. Qxd5 {[%emt 0:07:40]} Nxd4 {[%emt 0:02:47]} 19. Nxd4 {[%emt 0:01:30]} Rae8 {[%emt 0:00:23]} 20. Bd3 {[%emt 0:07:23]} (20. Kh1 $14) 20... Ne3 $11 {[%emt 0:02:39]} 21. Bxe3 {[%emt 0:02:38]} Rxe3 {[%emt 0:00:09]} 22. Rad1 {[%emt 0:03:37]} Bg4 {[%emt 0:06:19] Prevents Rf3.} 23. Nf5 {[%emt 0:06:04]} Bxf4 {[%emt 0:00:38]} 24. Nxe3 {[%emt 0:04:09]} Bxe3+ {[%emt 0:00:07] This bishop pair is nice.} 25. Kh1 {[%emt 0:00:04]} Bxd1 {[%emt 0:00:09]} 26. Rxd1 {[%emt 0:03:35] And now Qe4 would win.} g6 {[%emt 0:01:19]} 27. Be4 {[%emt 0:03:11]} b6 {[%emt 0:01:38]} 28. Qd3 {[%emt 0:00:32][%csl LRa6,LRe3]} Bf4 {[%emt 0:08:26]} 29. g3 {[%emt 0:00:24]} (29. Qxa6 Bxh2 30. Qd3 Qf4 $15) 29... Be5 {[%emt 0:00:08]} 30. Qxa6 {[%emt 0:01:50]} h5 {[%emt 0:00:14][%cal Oh5h4]} 31. Kg2 {[%emt 0:06:48]} Rd8 {[%emt 0:05:20]} 32. Bd5 {[%emt 0:00:23]} Kg7 {[%emt 0:00:12]} 33. Qe2 {[%emt 0:00:43]} h4 {[%emt 0:04:13][%cal Rh4g3]} 34. Qf3 {[%emt 0:01:52]} hxg3 {[%emt 0:04:08]} 35. hxg3 {[%emt 0:00:09]} f5 {[%emt 0:02:00]} 36. Rd2 {[%emt 0:02:38]} b5 {[%emt 0:01:52]} 37. a3 {[%emt 0:01:43]} Kf6 {[%emt 0:01:30]} 38. Qe3 {[%emt 0:06:34]} Rd7 {[%emt 0:02:10]} 39. Rd1 {[%emt 0:02:36][%cal Og3g4]} ({Of course not} 39. Qh6 Bxg3 40. Rd3 Be5 41. Qh4+ Kg7 $15) 39... Qb8 {[%emt 0:03:19]} (39... Rh7 $11) 40. Bf3 {[%emt 0:01:23]} ({White should play} 40. g4 $14) 40... Rxd1 {[%emt 0:05:14]} (40... f4 {seems wilder.} 41. gxf4 Bxf4 42. Qe2 Rxd1 43. Qxd1 Qe5) 41. Bxd1 {[%emt 0:30:06][%mdl 4096] Endgame KQB-KQB} Qd6 {[%emt 0:04:07]} 42. Be2 {[%emt 0:00:00]} Qd5+ {[%emt 0:00:38]} 43. Qf3 {[%emt 0:00:00]} Qc5 {[%emt 0:00:52]} (43... Qd2 {is interesting.} 44. Qc6+ Bd6 45. Kf2 g5) 44. Qd3 {[%emt 0:00:00]} Qc6+ {[%emt 0:00:53]} 45. Bf3 {[%emt 0:00:00]} Qc7 {[%emt 0:01:37]} 46. g4 {[%emt 0:00:00]} fxg4 {[%emt 0:06:26]} (46... Qb6 $14 {feels stronger.}) 47. Bxg4 $16 {[%emt 0:00:00]} Qc6+ $2 {[%emt 0:04:49][%mdl 8192]} (47... Qc5 $16) 48. Qf3+ $18 {[%emt 0:00:00]} Qxf3+ {[%emt 0:00:06]} 49. Kxf3 {[%emt 0:00:00] KB-KB} g5 {[%emt 0:00:10] [#]} 50. Bd7 $2 {[%emt 0:00:00]} (50. Ke4 $1 $18 Bf4 51. b3) 50... Bf4 $1 $14 {[%emt 0:00:07]} 51. Ke2 {[%emt 0:00:00] Black must now prevent Kd3.} Bc1 {[%emt 0:00:19]} 52. b4 {[%emt 0:00:00]} Bxa3 {[%emt 0:00:13]} 53. Kd2 {[%emt 0:00:00]} Ke5 {[%emt 0:07:54]} 54. Bxb5 {[%emt 0:00:00]} Kd6 {[%emt 0:03:04] Against Bd7} 55. Kc2 {[%emt 0:00:00]} Kc7 {[%emt 0:00:04]} 56. Be2 {[%emt 0:00:00] Hoping for Kb3.} Kc6 {[%emt 0:00:18]} 57. Bg4 {[%emt 0:00:00]} Kd5 {[%emt 0:04:33][%cal Oa3b4]} 58. Be2 {[%emt 0:00:00]} ({Better is} 58. Kd3 $16) 58... Ke4 {[%emt 0:00:51]} (58... Kc6 $1 $11) 59. Kb3 $16 {[%emt 0:02:17]} Bc1 {[%emt 0:00:03]} 60. c4 {[%emt 0:00:33]} Ke3 {[%emt 0:00:24]} 61. Bh5 {[%emt 0:00:48]} Kd4 {[%emt 0:00:04]} 62. c5 {[%emt 0:01:05]} Bf4 {[%emt 0:00:17]} 63. Ka4 {[%emt 0:00:12]} Bc7 {[%emt 0:00:16]} 64. Kb5 {[%emt 0:00:11]} Kc3 {[%emt 0:00:08]} 65. Be2 {[%emt 0:02:10]} Kb3 {[%emt 0:00:45]} 66. Bc4+ {[%emt 0:02:42]} Kc3 {[%emt 0:00:10]} 67. Be6 {[%emt 0:00:03]} Bf4 {[%emt 0:02:45]} 68. c6 {[%emt 0:00:41]} (68. Bf5 $16) 68... Bb8 {[%emt 0:00:03]} 69. Bd7 {[%emt 0:01:36]} Bd6 {[%emt 0:00:11]} 70. Bg4 {[%emt 0:00:25]} Bb8 {[%emt 0:00:52]} 71. Bh3 {[%emt 0:01:23]} Bd6 {[%emt 0:00:06]} 72. Bd7 {[%emt 0:00:05]} Bb8 {[%emt 0:00:04]} ({But not} 72... g4 73. Bxg4 Kb3 74. Be2 $16) 73. Kc5 {[%emt 0:00:14]} Ba7+ {[%emt 0:00:04]} 74. Kd5 {[%emt 0:00:28] White threatens c7 and mate.} Bb6 {[%emt 0:00:04]} 75. b5 {[%emt 0:00:01]} Kb4 {[%emt 0:00:17]} (75... g4 $1 $11 {keeps the balance.}) 76. Kd6 {[%emt 0:00:05]} g4 {[%emt 0:00:03]} 77. c7 {[%emt 0:00:26]} ({Reject} 77. Bxg4 $6 Kxb5 78. Be2+ Ka5 $11) 77... Bxc7+ {[%emt 0:00:03]} 78. Kxc7 {[%emt 0:00:03] White wants to mate with b6. KB-KP} g3 {[%emt 0:00:03]} 79. b6 {[%emt 0:00:13] Threatening mate with b7.} g2 {[%emt 0:00:03]} 80. b7 {[%emt 0:00:05]} g1=Q {[%emt 0:00:04]} 81. b8=Q+ {[%emt 0:00:06]} Kc3 {[%emt 0:00:07] [#]} 82. Qb5 {[%emt 0:01:33]} (82. Qh8+ $1 $16 Qd4 83. Qh3+ Kd2 84. Qh2+ Kc1 85. Qh1+ Kb2 86. Qg2+ Kb3 87. Qg5) 82... Qh2+ {[%emt 0:00:16]} (82... Qg3+ $1 $11 83. Kb7 Qg2+ 84. Kc7 Qg3+ 85. Kc8 Qg8+ 86. Kb7 Qg2+ 87. Bc6 Qb2) 83. Kb7 {[%emt 0:00:13] Weighted Error Value: White=0.31/Black=0.14 (very precise)} (83. Kc8 $16) 1/2-1/2

[Event "FRA-ch Teams Top 16-A 2022"]
[Site "Chartres"]
[Date "2022.06.11"]
[Round "3.2"]
[White "Santos Ruiz, Miguel"]
[Black "Kamsky, Gata"]
[Result "1/2-1/2"]
[ECO "C92"]
[WhiteElo "2586"]
[BlackElo "2661"]
[Annotator "TA"]
[PlyCount "63"]
[EventDate "2022.06.09"]
[EventType "team-tourn"]
[EventCountry "FRA"]
[SourceTitle "playchess.com"]
[Source "ChessBase"]
[SourceQuality "1"]
[TimeControl "40/5400+30:1800+30"]

{[%evp 23,63,24,33,29,38,27,36,17,21,37,38,29,22,42,39,39,39,24,29,22,66,0,0,0,20,-20,-26,-23,-13,-14,-22,-22,-14,-22,-20,-33,-37,-24,0,0,0,-3]} 1. e4 {[%emt 0:00:04]} e5 {[%emt 0:00:23]} 2. Nf3 {[%emt 0:00:07]} Nc6 {[%emt 0:00:05]} 3. Bb5 {[%emt 0:00:03]} a6 {[%emt 0:01:36]} 4. Ba4 {[%emt 0:00:08]} Nf6 {[%emt 0:00:37]} 5. O-O {[%emt 0:00:06]} Be7 {[%emt 0:00:06]} 6. Re1 {[%emt 0:00:05]} b5 {[%emt 0:03:02]} 7. Bb3 {[%emt 0:00:56]} d6 {[%emt 0:00:05]} 8. c3 {[%emt 0:00:08]} O-O {[%emt 0:00:08]} 9. h3 {[%emt 0:00:09]} Nd7 {[%emt 0:06:41]} 10. d4 {[%emt 0:01:51]} Bf6 {[%emt 0:01:26]} 11. a4 {[%emt 0:11:07]} Bb7 {[%emt 0:04:58]} 12. d5 {[%emt 0:15:05]} Ne7 {[%emt 0:04:44]} 13. Bc2 {[%emt 0:08:01] C92: Closed Ruy Lopez: 9...Be6, Karpov and Flohr-Zaitsev Variations.} Qb8 {[%emt 0:14:39]} 14. Nbd2 {[%emt 0:20:23][%cal Bb1d2,Bd2f1,Bf1g3][%mdl 32]} c6 {[%emt 0:04:45]} 15. dxc6 {[%emt 0:00:19] White is slightly better.} Bxc6 {[%emt 0:00:05]} 16. Nf1 {[%emt 0:01:30] [#]} Nc5 $146 {[%emt 0:05:09]} ({Predecessor:} 16... g6 17. Bh6 Bg7 18. Qd2 Rd8 19. axb5 axb5 20. Rxa8 Bxa8 21. N1h2 f6 22. Ng4 Bxh6 23. Qxh6 {1-0 (43) Haubro,M (2382)-Maze,S (2575) Helsingor 2015}) 17. axb5 {[%emt 0:01:20]} axb5 {[%emt 0:00:05]} 18. Rxa8 {[%emt 0:00:07]} Bxa8 {[%emt 0:00:17]} 19. Ng3 {[%emt 0:03:32]} g6 {[%emt 0:05:33] Inhibits Nh5.} 20. Bh6 {[%emt 0:05:17]} Bg7 {[%emt 0:01:11]} 21. Qd2 {[%emt 0:01:38]} f6 {[%emt 0:11:29]} 22. b4 {[%emt 0:03:55] White is more active.} ({White should try} 22. Be3 $14) 22... Ne6 $11 {[%emt 0:00:34]} 23. Bb3 {[%emt 0:01:11]} d5 {[%emt 0:00:08]} 24. exd5 {[%emt 0:09:26]} (24. Be3 {seems wilder.} Kh8 25. Rd1 Rd8 26. Qc2) 24... Bxh6 {[%emt 0:00:50]} 25. Qxh6 {[%emt 0:00:03]} Bxd5 {[%emt 0:00:08]} 26. Bxd5 {[%emt 0:00:57]} Nxd5 {[%emt 0:00:05]} 27. Ne4 {[%emt 0:00:54]} Qc7 {[%emt 0:03:29]} 28. Qd2 {[%emt 0:06:05]} Qc4 {[%emt 0:04:25]} 29. Qe2 {[%emt 0:04:49]} Qxe2 {[%emt 0:16:16]} 30. Rxe2 {[%emt 0:00:05]} f5 {[%emt 0:00:41] [#] ...Nef4 is the strong threat.} 31. Nc5 $1 {[%emt 0:01:02]} Nxc3 {[%emt 0:07:09]} 32. Rxe5 {[%emt 0:00:09] Weighted Error Value: White=0.09 (flawless) /Black=0.06 (flawless)} 1/2-1/2

[Event "FRA-ch Teams Top 16-A 2022"]
[Site "Chartres"]
[Date "2022.06.11"]
[Round "3.3"]
[White "Mamedov, Rauf"]
[Black "Wirig, Anthony"]
[Result "1-0"]
[ECO "A04"]
[WhiteElo "2656"]
[BlackElo "2520"]
[Annotator "TA"]
[PlyCount "63"]
[EventDate "2022.06.09"]
[EventType "team-tourn"]
[EventCountry "FRA"]
[SourceTitle "playchess.com"]
[Source "ChessBase"]
[SourceQuality "1"]
[TimeControl "40/5400+30:1800+30"]

{[%evp 18,63,-6,-4,10,8,8,8,10,16,51,58,50,55,56,14,38,26,49,39,65,60,95,116,122,109,116,87,158,154,152,145,169,146,154,159,164,159,153,159,162,173,168,155,235,88,563,556]} 1. e4 {[%emt 0:00:07]} c5 {[%emt 0:00:17]} 2. Nf3 {[%emt 0:00:05]} e6 {[%emt 0:00:36]} 3. d3 {[%emt 0:00:03]} Nc6 {[%emt 0:01:15]} 4. g3 {[%emt 0:00:04]} g6 {[%emt 0:01:03]} 5. Bg2 {[%emt 0:00:06]} Bg7 {[%emt 0:00:11]} 6. O-O {[%emt 0:00:05]} Nge7 {[%emt 0:00:11]} 7. c3 {[%emt 0:00:08][%cal Bc2c3,Bc3d4,Bd4c5][%mdl 32]} e5 {[%emt 0:08:59]} 8. Be3 {[%emt 0:01:05]} d6 {[%emt 0:05:03][%cal Bd7d6,Bd6d5,Bd5e4][%mdl 32]} 9. d4 {[%emt 0:02:01]} exd4 {[%emt 0:00:26]} 10. cxd4 {[%emt 0:00:38] [#]} d5 $146 {[%emt 0:01:20] A04: Unusual lines after 1 Nf3 and King's Indian Attack.} (10... Bg4 {feels hotter.} 11. dxc5 dxc5 12. Nc3 Nd4) ({Predecessor:} 10... Bg4 11. d5 Bxb2 12. dxc6 Bxa1 13. cxb7 Rb8 14. Bh6 Rxb7 15. Nbd2 Bf6 16. Nc4 Rd7 17. Qa4 Qc7 18. e5 dxe5 {0-1 (26) Hambleton,A (2454)-Kobalia,M (2587) Chess.com INT 2021}) 11. dxc5 {[%emt 0:06:39]} dxe4 {[%emt 0:15:56] And now ...Qxd1 would win.} 12. Qxd8+ {[%emt 0:03:17]} Nxd8 {[%emt 0:00:50] The position is equal.} 13. Nd4 {[%emt 0:00:06]} Ne6 {[%emt 0:10:11]} 14. Nxe6 {[%emt 0:04:28]} Bxe6 {[%emt 0:00:12]} 15. Nc3 {[%emt 0:00:10]} f5 {[%emt 0:16:23]} 16. Rad1 {[%emt 0:17:49] Against Nd5} Bxc3 {[%emt 0:22:08]} (16... O-O {keeps more tension.} 17. Rd6 Bf7 18. Rd7 Bxc3 19. Rxe7 Bxb2 20. Rxb7 Bf6) 17. bxc3 {[%emt 0:00:10]} Rd8 {[%emt 0:05:25]} 18. f3 {[%emt 0:02:58]} Rxd1 {[%emt 0:00:44]} 19. Rxd1 {[%emt 0:00:03]} Bxa2 {[%emt 0:03:39]} 20. fxe4 {[%emt 0:03:30]} fxe4 {[%emt 0:00:02]} 21. Bxe4 {[%emt 0:01:02]} Nc6 {[%emt 0:00:10]} 22. Bh6 {[%emt 0:11:02] White is more active.} Be6 {[%emt 0:01:54]} (22... Kf7 $142) 23. Rb1 $16 {[%emt 0:02:44]} Bc8 {[%emt 0:01:22]} 24. Bd5 $1 {[%emt 0:08:19] aiming for Bg7.} Kd8 {[%emt 0:03:05] [#]} 25. Bg5+ $1 {[%emt 0:02:48]} Kc7 {[%emt 0:00:01]} 26. Bf4+ {[%emt 0:00:46]} Kd7 {[%emt 0:00:02]} 27. Rd1 {[%emt 0:00:32]} a5 {[%emt 0:01:26]} 28. Bb3+ {[%emt 0:12:25] This bishop pair is nice.} Ke7 {[%emt 0:00:56]} 29. Bg5+ {[%emt 0:01:11]} Ke8 {[%emt 0:00:07]} 30. Bh6 {[%emt 0:00:56] Hoping for Bg7.} Ke7 {[%emt 0:00:13] [#]} (30... Bg4 $16) 31. Rf1 {[%emt 0:00:51]} (31. Bd5 $1 $18 {is more deadly.}) 31... Be6 $2 {[%emt 0:01:15][%mdl 8192]} (31... Kd8 $16 {is a better chance.}) 32. Bg5+ {[%emt 0:00:15] Weighted Error Value: White=0.13 (very precise) /Black=0.48} 1-0

[Event "FRA-ch Teams Top 16-A 2022"]
[Site "Chartres"]
[Date "2022.06.11"]
[Round "3.4"]
[White "Demuth, Adrien"]
[Black "Bauer, Christian"]
[Result "0-1"]
[ECO "A41"]
[WhiteElo "2493"]
[BlackElo "2596"]
[Annotator "TA"]
[PlyCount "94"]
[EventDate "2022.06.09"]
[EventType "team-tourn"]
[EventCountry "FRA"]
[SourceTitle "playchess.com"]
[Source "ChessBase"]
[SourceQuality "1"]
[TimeControl "40/5400+30:1800+30"]

{[%evp 15,94,79,90,83,88,87,72,56,69,0,0,0,0,0,0,-54,-30,-23,-33,-54,-45,-44,-15,-43,-36,-32,-45,-43,-33,-71,-58,-89,-70,-71,-58,-53,-34,-76,-69,-78,-78,-76,-72,-77,-54,-83,-85,-79,-79,-129,-88,-92,-89,-100,-87,-88,-93,-87,-92,-91,-91,-111,-110,-111,-89,-106,-82,-100,-101,-193,-175,-185,-156,-150,-127,-472,-458,-452,-402,-394,-372]} 1. d4 {[%emt 0:00:04]} d6 {[%emt 0:02:13]} 2. Nf3 {[%emt 0:00:12]} Bg4 {[%emt 0:00:06]} 3. e4 {[%emt 0:01:06]} Nf6 {[%emt 0:01:37]} 4. h3 {[%emt 0:00:42][%cal Bh2h3,Bh3h4,Bh4h5][%mdl 32]} Bh5 {[%emt 0:01:42]} 5. Nc3 {[%emt 0:02:19]} c6 {[%emt 0:01:42]} 6. g4 {[%emt 0:02:50]} Bg6 {[%emt 0:00:06]} 7. Qe2 {[%emt 0:00:06]} e6 {[%emt 0:07:02]} 8. h4 {[%emt 0:21:54]} h6 {[%emt 0:04:19]} 9. h5 {[%emt 0:00:41] A41: 1 d4 d6: Tartakower System and Modern Defence.} Bh7 {[%emt 0:00:05]} 10. g5 {[%emt 0:02:37]} hxg5 {[%emt 0:00:05]} 11. Bxg5 {[%emt 0:05:06] White is better.} Qa5 {[%emt 0:09:42] ...Nxe4 is the strong threat.} 12. O-O-O {[%emt 0:04:37]} (12. Bd2 $14) 12... d5 $1 $11 {[%emt 0:05:18][%cal Rf6e4]} 13. Bxf6 {[%emt 0:12:56]} gxf6 {[%emt 0:02:32] [#]} 14. exd5 $146 {[%emt 0:00:04]} ({Predecessor:} 14. Nd2 Bh6 15. f3 Nd7 16. Kb1 O-O-O 17. Nb3 Qb6 18. Qe1 Kb8 19. Bd3 Rdg8 20. exd5 cxd5 {0-1 (37) Beaumont,C (2365)-Dunworth,C (2245) London 1994}) 14... cxd5 {[%emt 0:01:48]} 15. Bh3 {[%emt 0:00:08]} ({White should play} 15. Nd2 $11) 15... Qa6 {[%emt 0:06:37]} 16. Qe3 {[%emt 0:10:46] Black must now prevent Nxd5.} Nd7 {[%emt 0:19:08]} 17. Nd2 {[%emt 0:17:22]} O-O-O {[%emt 0:06:23][%cal Be8c8,Bc8b8,Bb8a8][%mdl 32]} 18. Bf1 {[%emt 0:01:06]} Qc6 {[%emt 0:02:21]} (18... Qb6 {seems wilder.} 19. h6 Ne5 20. dxe5 d4) 19. Bd3 {[%emt 0:00:45]} (19. h6 {is more complex.} Nb6 20. Nb3 Kb8 21. Bd3) 19... Bxd3 {[%emt 0:04:16]} 20. Qxd3 {[%emt 0:00:03]} Kb8 {[%emt 0:01:12]} 21. Kb1 {[%emt 0:00:05]} Rc8 {[%emt 0:01:42]} 22. Nf1 {[%emt 0:04:28]} f5 {[%emt 0:04:28]} 23. Rh3 {[%emt 0:05:29]} Nf6 {[%emt 0:02:08]} 24. Qe2 {[%emt 0:00:20] Strongly threatening Qe5+.} Ka8 {[%emt 0:03:52]} 25. Nd2 {[%emt 0:02:03][%cal Bf1d2,Bd2f3,Bf3e5][%mdl 32]} Bd6 {[%emt 0:04:06][%cal Bf8d6,Bd6f4,Bf4g5][%mdl 32]} 26. h6 {[%emt 0:01:40]} Bf4 {[%emt 0:01:15]} 27. Rdh1 {[%emt 0:00:10]} Rh7 {[%emt 0:03:19]} 28. Nf3 {[%emt 0:01:24]} Rch8 {[%emt 0:02:48]} 29. Ne5 {[%emt 0:00:37]} Qb6 {[%emt 0:00:28]} 30. Rh4 {[%emt 0:01:38]} Bg5 {[%emt 0:00:38]} (30... Qxd4 31. Nf3 Qb4 32. Ng5 $16) (30... Rxh6 $6 31. Rxh6 Rxh6 32. Rxh6 Bxh6 33. Nxf7 $11) (30... Bxh6 31. Nxf7 $1 Rxf7 32. Rxh6 $16) 31. R4h3 {[%emt 0:00:02]} a6 {[%emt 0:00:54]} (31... Rxh6 32. Rxh6 Rxh6 33. Rxh6 Bxh6 34. Nxf7 $11) (31... Bxh6 32. Nxf7 Rxf7 33. Rxh6 $16) 32. Qd3 {[%emt 0:01:19]} ({White should try} 32. Qf1) 32... Bf4 {[%emt 0:00:33]} (32... Bxh6 33. Nxf7 $1 Rxf7 34. Rxh6 $14) (32... Rxh6 $6 33. Rxh6 Rxh6 34. Rxh6 Bxh6 35. Nxf7 $11) 33. f3 {[%emt 0:01:33]} Qc7 {[%emt 0:00:14]} ({Much weaker is} 33... Rxh6 $6 34. Rxh6 Rxh6 35. Rxh6 Bxh6 36. Nxf7 $11) ({Don't play} 33... Bxh6 34. Nxf7 $1 Rxf7 35. Rxh6 $14) 34. Qe2 {[%emt 0:00:22]} Rxh6 {[%emt 0:01:19]} 35. Rxh6 {[%emt 0:00:05]} Rxh6 {[%emt 0:00:03]} 36. Rxh6 {[%emt 0:00:38]} Bxh6 {[%emt 0:00:01]} 37. Qh2 {[%emt 0:00:36]} Bg7 {[%emt 0:00:24]} 38. a3 {[%emt 0:00:35]} Nd7 {[%emt 0:00:52][%cal Rd7e5]} 39. f4 {[%emt 0:00:18]} Bxe5 {[%emt 0:01:43]} 40. dxe5 $17 {[%emt 0:01:10][%mdl 4096] Endgame KQN-KQN} Ka7 {[%emt 0:00:52]} 41. Qg1+ {[%emt 0:03:17]} Qb6 {[%emt 0:06:53]} 42. Qg7 {[%emt 0:04:53] [#]} (42. Qg8 $17 {was called for.}) 42... Nc5 $1 $19 {[%emt 0:00:32]} 43. Qxf7 {[%emt 0:02:24]} d4 {[%emt 0:01:19]} 44. Nd1 {[%emt 0:05:28]} d3 $36 {[%emt 0:01:44][%mdl 2048] And now ...dxc2+ would win. Black is in control.} 45. Qe7 $2 {[%emt 0:08:51][%mdl 8192]} (45. b4 $17 {was the crucial defense.}) 45... dxc2+ {[%emt 0:03:34]} 46. Kxc2 {[%emt 0:00:04]} Qb3+ {[%emt 0:00:11]} 47. Kc1 {[%emt 0:00:04]} Qc4+ {[%emt 0:03:01] Weighted Error Value: White=0.34/Black=0.08 (flawless)} ({Don't go for} 47... Nd3+ $2 48. Kd2 Nxf4 49. Qd6 $19) 0-1

[Event "FRA-ch Teams Top 16-A 2022"]
[Site "Chartres"]
[Date "2022.06.11"]
[Round "3.5"]
[White "Tiviakov, Sergei"]
[Black "Parligras, Mircea-Emilian"]
[Result "1/2-1/2"]
[ECO "B51"]
[WhiteElo "2567"]
[BlackElo "2583"]
[Annotator "TA"]
[PlyCount "59"]
[EventDate "2022.06.09"]
[EventType "team-tourn"]
[EventCountry "FRA"]
[SourceTitle "playchess.com"]
[Source "ChessBase"]
[SourceQuality "1"]
[TimeControl "40/5400+30:1800+30"]

{[%evp 11,59,0,6,0,0,0,0,0,0,0,26,0,0,0,13,0,0,15,8,0,0,0,0,0,0,0,0,0,16,17,16,15,17,6,8,20,22,5,25,0,0,8,8,1,0,0,0,0,0,0]} 1. e4 {[%emt 0:00:03]} c5 {[%emt 0:00:07]} 2. Nf3 {[%emt 0:00:08]} d6 {[%emt 0:00:05]} 3. Bb5+ {[%emt 0:00:08]} Nd7 {[%emt 0:00:10]} 4. d4 {[%emt 0:00:11]} cxd4 {[%emt 0:00:15]} 5. Qxd4 {[%emt 0:00:07]} a6 {[%emt 0:00:19]} 6. Bxd7+ {[%emt 0:00:15]} Bxd7 {[%emt 0:00:08]} 7. c4 {[%emt 0:00:29] B51: Sicilian: Moscow Variation (3 Bb5+) without 3...Bd7.} b5 {[%emt 0:00:34]} 8. Nc3 {[%emt 0:04:54]} e5 {[%emt 0:01:07]} 9. Qd3 {[%emt 0:00:06][%cal Rc4b5]} bxc4 {[%emt 0:00:18]} 10. Qxc4 {[%emt 0:00:05]} Be6 {[%emt 0:00:20]} 11. Qc6+ $1 {[%emt 0:02:27] The main line 11.Qc6+ scores better than 11.Qd3.} Bd7 {[%emt 0:00:08]} 12. Qc4 {[%emt 0:00:04]} Be6 {[%emt 0:00:20]} 13. Qd3 {[%emt 0:02:56]} h6 {[%emt 0:05:01]} 14. O-O {[%emt 0:00:12]} Nf6 {[%emt 0:00:11]} 15. b3 {[%emt 0:04:23]} Be7 {[%emt 0:01:18]} 16. Bb2 {[%emt 0:01:37]} O-O {[%emt 0:01:15]} 17. Rfd1 {[%emt 0:00:41]} Qb6 {[%emt 0:23:07]} 18. Nd2 {[%emt 0:06:19][%cal Bf3d2,Bd2f1,Bf1e3][%mdl 32]} Rac8 {[%emt 0:01:07]} 19. Nf1 {[%emt 0:12:07]} Rc6 {[%emt 0:04:50]} 20. Ne3 {[%emt 0:03:07]} Rfc8 {[%emt 0:01:18]} 21. h3 {[%emt 0:11:32]} Qb7 {[%emt 0:09:46]} 22. Ncd5 {[%emt 0:12:33]} Bxd5 {[%emt 0:08:05]} 23. exd5 {[%emt 0:00:09]} Rc5 {[%emt 0:00:09]} 24. Rac1 {[%emt 0:00:30]} g6 {[%emt 0:13:15] [#]} 25. Rxc5 $146 {[%emt 0:05:05]} (25. Ba3 $5 {[%cal Ra3c5]} Rxc1 26. Rxc1 $11) ({Predecessor:} 25. Ba3 Rxc1 26. Rxc1 Rxc1+ 27. Bxc1 Kg7 28. Ba3 Qb6 29. Nc4 Qb5 30. Nxe5 dxe5 31. Qxb5 axb5 32. Bxe7 Nxd5 33. Bd6 Kf6 34. a4 bxa4 35. bxa4 Ke6 36. Bf8 h5 37. f3 Kd7 {½-½ (35) Roques,P (2382)-Feletar,D (2350) ICCF email 2016}) 25... Rxc5 {[%emt 0:00:05] The position is equal.} 26. a4 {[%emt 0:03:26]} Qb4 {[%emt 0:04:50]} 27. Ra1 {[%emt 0:01:36] Black should prevent Ba3.} Qa5 {[%emt 0:04:38][%cal Rf6d5]} 28. Rd1 {[%emt 0:09:34][%cal Ob3b4] [#] Strongly threatening b4!} Qb4 {[%emt 0:00:10]} 29. Ra1 {[%emt 0:05:09]} Qa5 {[%emt 0:00:06][%cal Rf6d5]} 30. Rd1 {[%emt 0:02:02] Not much happened in this game.  Weighted Error Value: White=0.04 (flawless) /Black=0.01 (flawless)} 1/2-1/2